Cogmind - Beta 11.1 @@@ ROGUE MODE // 2022.06.06 @ 20:16:08 Player: ktur Result: Destroyed by 8R-AWN with 8R-AWN's Boregun Performance ------------- Evolutions (0) 0 Regions Visited (3) 600 Robots Destroyed (17) 85 Value Destroyed (375) 375 Prototype IDs (2) 40 Alien Tech Used (0) 0 Bonus (-782) -782 TOTAL SCORE: 318 Bonus ------- Friendly Fire -782 Cogmind --------- Core Integrity 0/250 Matter 67/300 Energy 100/100 System Corruption 2% Temperature Cool (86) Movement Core (700) Ox13 Location -10/Exiles Parts ------- > --- POWER (1) -------- (None) > --- PROPULSION (2) --- (None) > --- UTILITY (2) ------ High-capacity Storage Unit > --- WEAPON (2) ------- Assault Rifle > --- INVENTORY (20) --- Light Ion Engine Wheel Heat Sink Huge Storage Unit High-capacity Matter Pod (200) Transport Network Coupler Targeting Computer EM Pulse Gun EM Pulse Gun EM Pulse Gun Medium Laser Medium Laser Grenade Launcher Rocket Launcher Datajack Peak State ------------ > --- POWER ------------ Ion Engine > --- PROPULSION ------- Light Treads Light Treads > --- UTILITY ---------- High-capacity Storage Unit Armor Integrity Analyzer > --- WEAPON ----------- Medium Laser Assault Rifle > --- INVENTORY -------- Light Ion Engine Light Treads Wheel Heat Sink Huge Storage Unit High-capacity Matter Pod Transport Network Coupler Targeting Computer Light Armor Plating EM Pulse Gun EM Pulse Gun EM Pulse Gun Medium Laser Medium Laser Assault Rifle Light Cannon Grenade Launcher Rocket Launcher Datajack [Rating: 12] Favorites ----------- Power Ion Engine Engine Ion Engine Propulsion Light Treads Treads Light Treads Utility High-capacity Storage Unit Storage High-capacity Storage Unit Processor Targeting Computer Protection Light Armor Plating Weapon Assault Rifle Energy Gun Medium Laser Ballistic Gun Assault Rifle Ballistic Cannon Light Cannon Launcher Rocket Launcher Build | -11 -10 -10 -10 ------- Run | Scr Mat Min Exi Slots Evolved . | . . . . Power . | . . . . Propulsion . | . . . . Utility . | . . . . Weapon . | . . . . Parts Attached 17 | 6 3 1 7 Power 2 | 1 . 1 . Engine 2 | 1 . 1 . Core . | . . . . Reactor . | . . . . Propulsion 3 | 2 . . 1 Treads 3 | 2 . . 1 Leg . | . . . . Wheel . | . . . . Hover . | . . . . Flight . | . . . . Utility 5 | 1 2 . 2 Device . | . . . . Storage 2 | 1 1 . . Processor 2 | . 1 . 1 Hackware . | . . . . Protection 1 | . . . 1 Artifact . | . . . . Weapon 7 | 2 1 . 4 Energy Gun 2 | 1 . . 1 Energy Cannon . | . . . . Ballistic Gun 3 | 1 1 . 1 Ballistic Cannon 1 | . . . 1 Launcher 1 | . . . 1 Special Weapon . | . . . . Impact Weapon . | . . . . Slashing Weapon . | . . . . Piercing Weapon . | . . . . Special Melee Weapon . | . . . . Unidentified Prototypes . | . . . . Parts Lost 9 | . . 1 8 Power 2 | . . 1 1 Propulsion 3 | . . . 3 Utility 1 | . . . 1 Weapon 3 | . . . 3 Highest Loss Streak 6 | . . 1 6 To Critical Strikes 5 | . . . 5 Average Slot Usage (%) 98 | . 98 99 92 Engine 13 | . 14 13 13 Treads 27 | . 28 28 22 Storage 14 | . 14 14 14 Processor 13 | . 12 14 11 Energy Gun 13 | . 14 14 11 Ballistic Gun 13 | . 13 14 13 Naked Turns . | . . . . Heaviest Build 50 | 14 49 49 50 Greatest Support 40 | 40 40 40 40 Greatest Overweight (x) 14 | 1 1 1 14 Average Overweight (x) . | . . 1 1 Largest Inventory Capacity 20 | 8 20 20 20 Average Capacity 19 | 6 19 20 20 Most Carried 20 | 6 20 20 20 Average Carried 18 | 3 16 19 19 Final Capacity 20 | 8 20 20 20 Final Carried 20 | 6 20 20 15 Class Distribution -------------------- 100% | Mutant Dominant Class ---------------- Mutant | -10/Materials Mutant | -10/Mines Mutant | -10/Exiles Resources | -11 -10 -10 -10 ----------- Run | Scr Mat Min Exi Matter Collected 714 | 187 397 75 55 Remotely . | . . . . Salvage Created 454 | . 343 74 37 Parts 45 | . 30 8 7 Haulers Intercepted 2 | . 2 . . Recyclers Shooed . | . . . . Parts Field Recycled . | . . . . Retrieved Matter . | . . . . Parts Self-Destructed . | . . . . Prevented . | . . . . Kills | -11 -10 -10 -10 ------- Run | Scr Mat Min Exi Combat Hostiles Destroyed 13 | . 6 6 1 Guns 12 | . 6 6 . AOE 1 | . . . 1 Classes Destroyed 7 | . 4 3 . Tunneler 2 | . 1 1 . Hauler 2 | . 2 . . Operator 1 | . 1 . . Swarmer 3 | . . 3 . Grunt 6 | . 6 . . Demolisher 2 | . . 2 . Assembled 7 | . . 1 6 Best Kill Streak 3 | . 3 3 2 Combat Bots Only 3 | . 3 3 1 Max Kills in Single Turn 5 | . 2 1 5 Gunslinging 1 | . 1 . . Exploded 1 | . . . 1 Melee . | . . . . Uniques/NPCs Destroyed 1 | . . . 1 EX-HEX (-10/Exiles) Combat | -11 -10 -10 -10 -------- Run | Scr Mat Min Exi Damage Taken 1386 | . 165 208 1013 Core 261 | . 11 33 217 Absorbed by Shields . | . . . . Regen/Repaired (Parts) 114 | . 114 . . Core Remaining (%) 100 | 100 . . . Volleys Fired 85 | . 28 11 46 Largest 2 | . 2 2 2 Hottest 70 | . 70 70 70 Shots Fired 159 | . 60 22 77 Gun 126 | . 60 22 44 Cannon 31 | . . . 31 Launcher 2 | . . . 2 Special . | . . . . Kinetic 102 | . 28 11 63 Thermal 55 | . 32 11 12 Explosive 2 | . . . 2 Electromagnetic . | . . . . Robot Hit Streak 13 | . 13 4 8 Robot Miss Streak 2 | . 2 2 2 Penetration Max . | . . . . Secondary Targets 4 | . 3 1 . Max Gunslinging Chain 1 | . 1 1 . Shots Hit Robots 114 | . 43 13 58 Core Hits 49 | . 20 8 21 Critical Kills . | . . . . Critical Parts Destroyed . | . . . . Critical Strikes 4 | . 2 2 . Burn 4 | . 2 2 . Melee Attacks . | . . . . Impact . | . . . . Slashing . | . . . . Piercing . | . . . . Sneak Attacks . | . . . . Combat Hostiles . | . . . . Follow-up Attacks . | . . . . Damage Inflicted 1890 | . 580 182 1128 Guns 1143 | . 566 169 408 Cannons 400 | . . . 400 Explosions 320 | . . . 320 Melee . | . . . . Ramming 27 | . 14 13 . Kinetic 1032 | . 284 53 695 Thermal 511 | . 282 116 113 Explosive 320 | . . . 320 Electromagnetic . | . . . . Impact . | . . . . Slashing . | . . . . Piercing . | . . . . Highest Corruption 2 | . 2 2 2 Average Corruption 2 | . 2 2 2 Corruption Purged . | . . . . Corruption Blocked . | . . . . Effects 53 | . 23 22 8 Message Errors 10 | . 3 7 . Matter Fused 9 | . 2 5 2 Heat Flow Errors 9 | . 4 3 2 Energy Discharges 10 | . 5 3 2 Data Loss (minor) 4 | . 2 2 . Data Loss (major) 5 | . 3 2 . Misfires 4 | . 4 . . Weapon Failures 2 | . . . 2 Overload Shots . | . . . . Overflow Damage . | . . . . Projectiles . | . . . . Explosions . | . . . . Melee . | . . . . Knockbacks 7 | . . . 7 Impact . | . . . . Kinetic 7 | . . . 7 Secondary . | . . . . Self-Inflicted Damage . | . . . . Shots . | . . . . Rammed 6 | . 3 3 . Targets Rammed 7 | . 3 4 . Kicked . | . . . . Crushed 1 | . . 1 . Highest Temperature 421 | . 305 256 421 Average Temperature 98 | . 79 77 174 Received Heat Transfer 90 | . 90 . . Effects 4 | . . 1 3 Energy Bleed 1 | . . 1 . Short Circuit 1 | . . . 1 Damage (major) 2 | . . . 2 Siege Activations . | . . . . Robots Corrupted . | . . . . Combat Hostiles . | . . . . Parts Fried . | . . . . Impact Corruptions . | . . . . Robots Melted . | . . . . Combat Hostiles . | . . . . Parts Melted 5 | . 2 . 3 Heat Transferred 1524 | . 962 481 81 Parts Sabotaged . | . . . . Parts Stolen . | . . . . Parts Stripped . | . . . . Power Chain Reactions . | . . . . Missiles Intercepted . | . . . . Alert | -11 -10 -10 -10 ------- Run | Scr Mat Min Exi Peak Influence 126 | . 126 116 . Initial 31 | . . 31 . Average 30 | . 26 36 . Maximum Alert Level . | . . . . Low Security (%) 100 | 100 100 100 . Level 1 . | . . . . Level 2 . | . . . . Level 3 . | . . . . Level 4 . | . . . . Level 5 . | . . . . High Security . | . . . . Max Security . | . . . . Squads Dispatched 4 | . 4 . . Investigation 3 | . 3 . . Extermination . | . . . . Reinforcement 1 | . 1 . . Assault . | . . . . Garrison . | . . . . Intercept . | . . . . Searches Triggered . | . . . . Construction Impeded . | . . . . Haulers Reinforced . | . . . . Active Scanning Responses . | . . . . Cargo Convoy Interrupts . | . . . . Stealth | -11 -10 -10 -10 --------- Run | Scr Mat Min Exi Distress Signals 4 | . 4 . . Communications Jammed . | . . . . Distress Signals . | . . . . Times Spotted 17 | . 9 5 3 Peak Tracking Total 4 | . 3 2 4 Tactical Retreats . | . . . . Traps | -11 -10 -10 -10 ------- Run | Scr Mat Min Exi Traps Triggered 2 | . 2 . . Indirectly . | . . . . Trap Hack Attempts . | . . . . Triggered . | . . . . Disarmed . | . . . . Reprogrammed . | . . . . Reused . | . . . . Traps Extracted . | . . . . Installed . | . . . . Triggered . | . . . . Machines | -11 -10 -10 -10 ---------- Run | Scr Mat Min Exi Machines Disabled 3 | . . . 3 Max in Single Turn 2 | . . . 2 Machines Sabotaged . | . . . . Garrisons Compromised . | . . . . Overloaded Fab Kills . | . . . . Hacking | -11 -10 -10 -10 --------- Run | Scr Mat Min Exi Machines Accessed 9 | . 8 . 1 Terminals 5 | . 5 . . Fabricators . | . . . . Repair Stations 1 | . 1 . . Recycling Units 2 | . 2 . . Scanalyzers . | . . . . Garrison Access . | . . . . Total Hacks 25 | . 24 . 1 Successful 19 | . 18 . 1 Failed 5 | . 5 . . Catastrophic . | . . . . Database Lockouts 1 | . 1 . . Manual 14 | . 14 . . Terminals 18 | . 18 . . Fabricators . | . . . . Repair Stations 4 | . 4 . . Recycling Units 2 | . 2 . . Scanalyzers . | . . . . Garrison Access . | . . . . Terminal Hacks 9 | . 8 . 1 Record 1 | . . . 1 Robot Analysis 2 | . 2 . . Prototype ID Bank 1 | . 1 . . Alert Level 1 | . 1 . . Unreport Threat 1 | . 1 . . Locate Traps 2 | . 2 . . Hauler Manifests 1 | . 1 . . Fabricator Hacks . | . . . . Repair Station Hacks 4 | . 4 . . Scan Component 2 | . 2 . . Repair 2 | . 2 . . Recycling Unit Hacks . | . . . . Scanalyzer . | . . . . Garrison Access Hacks . | . . . . Unauthorized Hacks 6 | . 6 . . Terminals 4 | . 4 . . Botnet 3 | . 3 . . Operators 1 | . 1 . . Fabricators . | . . . . Repair Stations . | . . . . Recycling Units 2 | . 2 . . Tunnel 2 | . 2 . . Scanalyzers . | . . . . Garrison Access . | . . . . Data Cores Recovered . | . . . . Used . | . . . . Hacking Detections 5 | . 5 . . Full Trace Events . | . . . . Feedback Events . | . . . . Feedback Blocked . | . . . . Robot Schematics Acquired . | . . . . Robots Built . | . . . . Authchips . | . . . . Time . | . . . . Total Robot Build Rating . | . . . . Part Schematics Acquired . | . . . . Parts Built . | . . . . Authchips . | . . . . Time . | . . . . Total Part Build Rating . | . . . . Parts Repaired 2 | . 2 . . Time 52 | . 52 . . Parts Recycled . | . . . . Recycled Matter . | . . . . Retrieved Matter . | . . . . Retrieved Components . | . . . . Parts Scanalyzed . | . . . . Part Schematics Acquired . | . . . . Parts Damaged . | . . . . Bothacking | -11 -10 -10 -10 ------------ Run | Scr Mat Min Exi Used RIF Installer . | . . . . Robots Hacked . | . . . . Non-combat . | . . . . Combat . | . . . . Robot Hacks Applied . | . . . . Relay Couplers Released . | . . . . Fabnet Peak Effective % . | . . . . Robots Rewired . | . . . . Allies Hacked . | . . . . Hacks Repelled . | . . . . Allies | -11 -10 -10 -10 -------- Run | Scr Mat Min Exi Total Allies 3 | . . 3 . Largest Group 3 | . . 3 3 Highest-Rated Group 40 | . . 40 40 Highest-Rated Ally 16 | . . 16 16 Total Orders . | . . . . Ally Attacks 15 | . . . 15 Total Damage 95 | . . . 95 Kills 1 | . . . 1 Allies Corrupted . | . . . . Allies Melted . | . . . . Intel | -11 -10 -10 -10 ------- Run | Scr Mat Min Exi Robot Analysis Total 2 | . 2 . . Derelict Logs Recovered 2 | . . 2 . Drone Launches . | . . . . Drone Recoveries . | . . . . Exploration | -11 -10 -10 -10 ------------- Run | Scr Mat Min Exi Turns Passed 4067 | 88 1925 1570 484 Spaces Moved 1463 | 53 733 535 142 Core 13 | 11 . . 2 Treads 1450 | 42 733 535 140 Legs . | . . . . Wheels . | . . . . Hover . | . . . . Flight . | . . . . Fastest Speed 50 | 50 160 240 240 Average Speed 235 | 140 237 240 247 Slowest Speed 750 | 160 240 240 750 Overloaded Moves . | . . . . Propulsion Burnouts . | . . . . Robots Hopped . | . . . . Cave-ins Triggered . | . . . . Exploration Rate (%) 60 | 3 99 99 39 Regions Visited 3 Branch Regions 2 Pre-discovered Areas 5 | . 2 2 1 Known Exits Taken . | . . . . Unknown Exits Taken 3 | 1 1 1 . Scrap Searched 1 | . . 1 . Spaces Dug . | . . . . Terrain Destroyed 17 | . . . 17 Melee . | . . . . Projectile . | . . . . AOE 17 | . . . 17 Terrain Rammed . | . . . . Walls Destroyed . | . . . . Machines Disabled . | . . . . Actions | -11 -10 -10 -10 --------- Run | Scr Mat Min Exi Total 1919 | 64 861 796 198 Wait 314 | . 73 239 2 Move 1460 | 52 732 534 142 Hop . | . . . . Pick Up 28 | 6 18 4 . Fast Attach 9 | 6 3 . . Attach 5 | . . 1 4 Detach . | . . . . Swap 3 | . . . 3 Drop 8 | . 4 3 1 Fire 85 | . 28 11 46 Melee . | . . . . Ram . | . . . . Kick . | . . . . Crush 7 | . 3 4 . Escape Stasis . | . . . . Rewire . | . . . . Trap . | . . . . Miscellaneous . | . . . . Route ------- -11/Scrapyard -10/Materials (discovered 5 exits: [*Mat x3] / [*Min x2]) -10/Mines (discovered 3 exits: [*Mat x2] / *Exi) -10/Exiles History --------- Turn | Location | Event 4 | -11/Scrapyard | Discovered new exit (range 16) 89 | -11/Scrapyard | Entered Materials 303 | -10/Materials | Build established: Mutant 601 | -10/Materials | Central database locked down 740 | -10/Materials | Discovered new exit (range 7) 822 | -10/Materials | Discovered new exit (range 11) 1026 | -10/Materials | Discovered new exit (range 12) 1383 | -10/Materials | Discovered new exit (range 15) 1619 | -10/Materials | Discovered new exit (range 3) 1684 | -10/Materials | Repaired Assault Rifle 1711 | -10/Materials | Repaired Lgt. Treads 2014 | -10/Materials | Entered Mines 2034 | -10/Mines | Met a Derelict bent on vengeance 2046 | -10/Mines | Discovered new exit (range 4) 2053 | -10/Mines | Received a Rocket Launcher from a helpful Derelict 2076 | -10/Mines | Learned location of Mines (-9) 2101 | -10/Mines | Assembled infested the area 2106 | -10/Mines | Assisted by a Guerilla fighting off Assembled 2818 | -10/Mines | Discovered new exit (range 5) 3165 | -10/Mines | Assisted by bots powering up and referring to "LRC-V3" 3278 | -10/Mines | Learned Materials stockpile data 3564 | -10/Mines | Deemed a non-threat by the Exiles lab entrance 3564 | -10/Mines | Discovered new exit (range 5) 3584 | -10/Mines | Entered Exiles 3584 | -10/Exiles | Accompanied by 3 allies 3649 | -10/Exiles | Met 8R-AWN 3683 | -10/Exiles | Met EX-HEX 3788 | -10/Exiles | Met EX-DEC 3791 | -10/Exiles | Learned location of Zion (-6) 3922 | -10/Exiles | Attacked by the Exiles 3930 | -10/Exiles | Destroyed EX-HEX 3984 | -10/Exiles | Core integrity fell below 50% 4061 | -10/Exiles | Core integrity fell below 20% 4068 | -10/Exiles | Destroyed by 8R-AWN with 8R-AWN's Boregun Last Messages --------------- 04039_ Penetrated by HV Slug. 04039_ Ion Engine destroyed. 04039_ Penetrated by HV Slug. 04044_ System corrupted: Heat flow error (+291). 04047_ Penetrated by HV Slug. 04047_ Critical hit (Destroy). 04047_ Penetrated by HV Slug. 04048_ Overheating: Lgt. Armor Plating damaged (-1). 04048_ Overheating: Assault Rifle damaged (-59). 04051_ Penetrated by HV Slug. 04056_ Med. Laser broken. 04056_ Overheating: Short circuit. 04056_ Penetrated by HV Slug. 04056_ Critical hit (Destroy). 04056_ Lgt. Armor Plating destroyed. 04056_ Acquired 55 matter. 04060_ Penetrated by HV Slug. 04064_ Critical hit (Destroy). 04064_ Broken Med. Laser destroyed. 04068_ Penetrated by HV Slug. Map ----- +----------------------------------------------------+ | ????????????????????????????????????????????? | | ???????????????????????????????????????????? | | ??????????????????????????????????????????? | | ?????????????????????????????????????????? | | ?????????????????????????????????????????? | | ??????????????????????????????????????????? | | ??????????????????????????????????????????? | | "???????????????????????????????????????????? | | #????????????????????????????????????????????? | | #????????????????????????????????????????????? | | #????????????????????????????????????????????? | | ##???????????????????????????????????????????? | | ##???###########????????????????????????????? | | #####"""""""""##???????????????????????????? | | " """ """"##??????????????????????????? | | "" " #??????????????????????????? | | " """#??????????????????????????? | | "a"#???????????#####??????????? | | " "##?????????##" #??????????? | | ""###???????#" #??????????? | | "" """#??????##" ##?????????? | | #""" "#????### ###???????? | | #####""" ##??## ######### | | ????##""" %!! ###;# % #""""## | | ?????#"""" !%! ;;;% % | | ?????#"" !!!*% @ g ## * | | ?????"""" ! [ % #### | | ????? %! % "#?#"""""#### | | ??? # ""##?#######??#### | | ??? ######??????????????## | | ??? ##????????????????????? | | ?? % ##?????????????????????? | | ?? "" ""#??????????????????????? | | ??##""" " " # %"##??????????????????????? | | ?????###""" """## ##???????????????????????? | | ????????##""""?? # ####????????????????????????? | | ???????????#???## # #??????????????????????????? | | ???????????????? # ???????????????????????????? | | ???????????????????##????????????????????????????? | | ?????????????????????????????????????????????????? | | ?????????????????????????????????????????????????? | | ?????????????????????????????????????????????????? | | ?????????????????????????????????????????????????? | | ?????????????????????????????????????????????????? | | ?????????????????????????????????????????????????? | | ?????????????????????????????????????????????????? | | ?????????????????????????????????????????????????? | | ?????????????????????????????????????????????????? | | ?????????????????????????????????????????????????? | | ?????????????????????????????????????????????????? | +----------------------------------------------------+ Best States ------------- Heat Dissipation 25 Energy Generation 10 Energy Capacity 250 Matter Stores 300 Matter Capacity 300 Sight Range 16 Terrain Scan Density 10 Armor Coverage 150 Evasion (%) 40 Targeting Accuracy 5 Armor Integrity Analysis 30 Recoil Reduction 2 Item Schematics ----------------- None Robot Schematics ------------------ None Fabricated ------------ Nothing Alien Tech Used ----------------- None Achievements -------------- None Challenges ------------ None Game ------ Seed VortexTrapReconfigurator Manual? 0 Play Time 00:14:24 Cumulative 470.6 hours Start 2022.06.06 @ 20:03:38 End 2022.06.06 @ 20:16:08 Sessions 1 Manual Loads 0 Difficulty Rogue Special Mode None Game No. 447 Rogue 447 Adventurer 0 Explorer 0 Win Type - Total 22 Types 13/2/4/2/0/0/0/1/0 Lore% 94 Gallery% 93 Achievement% 78 Wizard Run 0 Options --------- ASCII 0 Keyboard 0 Movement Arrows Keybinds 0 Fullscreen 1 Font 18/Smallcaps Map View 76x50 Tactical HUD 1 Map Filters NONE Filters NONE Steam 1 RUN: 7bb6239b-40ab-4cf1-9d07-61479393bdad